bitfinex/quotes_ETHUSD_20260102
["timestamp","ask_amount","ask_price","bid_price","bid_amount"]
[1767334768238,0.03298411,3021.3,3020.8,2.25533488]
[1767334769943,0.03298411,3021.3,3020.8,2.25378521]
[1767334771647,3.34282341,3021.3,3020.8,2.25378521]
[1767334772022,0.03298411,3021.3,3020.8,2.25378521]
[1767334772437,3.30972126,3021.5,3020.8,2.25378521]
[1767334772718,0.002,3021.3,3020.8,2.25378521]
[1767334772921,0.002,3021.3,3020.9,2.25533488]
[1767334776250,0.03653378,3021.3,3020.9,2.25533488]
[1767334777645,0.03453378,3021.1,3020.5,2.25633488]
[1767334777960,0.03453378,3021.1,3020.7,2.25533488]
[1767334780128,0.03453378,3021.1,3020.8,2.25633488]
[1767334781960,3.34461482,3021.1,3020.8,2.25633488]
[1767334786761,0.03143446,3021.0,3020.6,2.25533488]
[1767334786952,0.03143446,3021.0,3020.5,0.001]
[1767334788863,0.03043446,3020.9,3020.5,0.001]
[1767334789544,0.03043446,3020.9,3020.5,2.25633488]
[1767334789941,0.03043446,3020.9,3020.5,0.001]
[1767334790136,0.02943446,3020.8,3020.3,2.25633488]
[1767334791760,3.33984342,3020.8,3020.3,2.25633488]
[1767334791965,0.02943446,3020.7,3020.3,2.25633488]
[1767334801566,0.02943446,3020.8,3020.3,2.25633488]
[1767334801938,0.02943446,3020.6,3020.1,2.48938597]
[1767334803241,0.02943446,3020.6,3020.3,0.001]
[1767334803441,0.02943446,3020.6,3020.1,2.48938597]
[1767334803849,0.02798412,3020.4,3019.8,0.001]
[1767334804059,0.02798412,3020.1,3019.8,0.001]
[1767334804258,0.02798412,3020.1,3019.8,2.49193563]
[1767334804459,0.02798412,3020.4,3019.8,2.49193563]
[1767334805162,0.02798412,3020.4,3020.0,2.49093563]
[1767334805347,3.33847506,3020.7,3020.0,2.49093563]
[1767334805554,0.33404751,3020.6,3020.0,2.49093563]
[1767334805773,0.33404751,3020.6,3020.0,2.52404821]
[1767334805947,3.31071014,3020.5,3020.0,2.49093563]
[1767334806442,3.33869426,3020.5,3020.0,2.49093563]
[1767334806648,3.31071014,3020.5,3020.0,2.49093563]
[1767334806845,0.72352095,3020.4,3020.0,2.49093563]
[1767334807887,0.02798412,3020.3,3020.0,2.49093563]
[1767334808048,3.33893881,3020.3,3020.0,2.49093563]
[1767334808247,0.02798412,3020.3,3020.0,2.49093563]
[1767334809561,0.02798412,3020.5,3020.0,2.49093563]
[1767334809751,0.39523674,3020.5,3020.0,2.49093563]
[1767334810077,3.70604107,3020.5,3020.0,2.49193563]
[1767334810278,3.67805695,3020.5,3020.0,2.49193563]
[1767334810576,0.02798412,3020.4,3020.0,2.49193563]
[1767334815854,0.36203163,3020.6,3020.1,2.52404711]
[1767334817185,0.002,3020.5,3020.1,2.52404711]
[1767334820909,0.002,3020.8,3020.2,2.49093563]
[1767334821313,0.03198412,3020.8,3020.3,2.49093563]
[1767334821487,0.002,3020.8,3020.5,2.48993766]
[1767334823076,0.03098209,3021.0,3020.5,2.48993766]
[1767334823994,0.03098209,3021.0,3020.6,2.4918399]
[1767334824199,0.03098209,3021.0,3020.7,2.4918399]
[1767334824703,3.30996263,3021.2,3020.7,2.4918399]
[1767334825388,3.34094472,3021.2,3020.7,2.4918399]
[1767334825586,3.34094472,3021.2,3020.6,3.83086078]
[1767334825912,3.34094472,3021.2,3020.7,2.45503383]
[1767334826709,0.03098209,3021.2,3020.7,2.45503383]
[1767334829222,3.34092584,3021.2,3020.8,2.45503383]
[1767334829789,3.34092584,3021.2,3020.8,2.45348417]
[1767334830100,0.002,3021.3,3020.8,2.45348417]
[1767334830299,3.31349341,3021.2,3020.8,2.45348417]
[1767334830924,0.00354966,3021.2,3020.8,2.45348417]
[1767334831098,0.00044201,3021.3,3020.9,2.70038225]
[1767334832658,0.002,3021.2,3020.9,2.70038225]
[1767334834458,0.002,3021.2,3020.5,0.869]
[1767334834459,0.002,3021.2,3020.3,0.869]
[1767334834658,0.002,3021.2,3020.5,2.45503383]
[1767334835638,0.002,3021.2,3020.7,2.45503383]
[1767334845342,0.002,3021.2,3020.6,0.001]
[1767334850166,0.002,3021.2,3020.6,2.45603383]
[1767334860195,1.54284971,3021.1,3020.6,2.45447584]
[1767334862193,4.85292429,3021.1,3020.6,2.45447584]
[1767334862701,0.48549243,3021.0,3020.5,2.03e-06]
[1767334862885,0.48549243,3021.0,3020.5,2.47008405]
[1767334865809,1.54284971,3020.9,3020.5,2.47008405]
[1767334875192,3.31007669,3021.1,3020.5,2.03e-06]
[1767334875517,3.31011104,3021.1,3020.5,2.03e-06]
[1767334876615,2.38242775,3021.0,3020.5,2.03e-06]
[1767334878134,3.31027177,3020.9,3020.5,2.03e-06]
[1767334878336,2.38242775,3020.8,3020.5,2.03e-06]
[1767334879934,2.38242775,3020.8,3020.1,0.001]
[1767334880337,2.38242775,3020.6,3020.1,0.001]
[1767334880536,2.38242775,3020.5,3020.1,0.001]
[1767334881235,2.38242775,3020.5,3020.0,0.001]
[1767334881735,2.38242775,3020.5,3019.5,0.001]
[1767334881926,2.38242775,3020.5,3019.6,2.47008202]
[1767334883236,3.31072074,3020.5,3020.0,2.47108202]
[1767334883438,2.80353289,3020.4,3020.0,2.47108202]
[1767334885240,2.38242775,3020.4,3020.0,2.47108202]
[1767334888039,3.31084771,3020.4,3020.0,2.47108202]
[1767334888240,2.49263529,3020.3,3020.0,0.001]
[1767334888630,2.49263529,3020.3,3019.8,2.34251022]
[1767334889042,2.49263529,3020.2,3019.8,2.34251022]
[1767334890428,2.49263529,3020.2,3019.8,2.34351022]
[1767334890611,2.49263529,3020.2,3019.8,0.001]
[1767334891641,3.31104325,3020.2,3019.8,0.001]
[1767334891944,2.49263529,3020.1,3019.6,2.34251022]
[1767334892123,2.49263529,3020.1,3019.6,2.66386124]
[1767334892715,2.49263529,3020.1,3019.6,2.34251022]
[1767334901371,2.49263529,3020.1,3019.7,0.03311587]
[1767334901666,2.49263529,3020.1,3019.7,2.34251022]
[1767334913806,2.49463529,3020.1,3019.7,2.34251022]
[1767334920918,2.49463529,3020.1,3019.6,0.001]
[1767334921236,2.2656446,3020.0,3019.5,0.001]
[1767334922028,2.2656446,3020.0,3019.5,2.42268163]
[1767334924630,3.31126097,3020.0,3019.5,2.42268163]
[1767334924804,2.2656446,3019.9,3019.5,2.42268163]
[1767334929531,2.2676446,3019.9,3019.5,2.42268163]
[1767334940524,2.2676446,3019.9,3019.6,2.42168163]
[1767334941151,5.57647441,3020.4,3019.7,2.42168163]
[1767334941653,5.57647441,3020.4,3019.9,2.42168163]
[1767334945948,5.57847441,3020.4,3019.9,2.42168163]
[1767334946779,2.33539152,3020.3,3019.9,2.42168163]
[1767334948569,5.64635316,3020.3,3019.9,2.42168163]
[1767334952769,2.33539152,3020.2,3019.9,2.42168163]
[1767334955157,2.33539152,3020.1,3019.7,2.31325849]
[1767334958569,2.33539152,3020.0,3019.6,0.001]
[1767334958775,2.33539152,3020.0,3019.6,2.61715448]
[1767334959244,5.64643762,3020.2,3019.6,2.61715448]
[1767334959448,5.64643762,3020.2,3019.6,2.31425849]
[1767334959971,2.33539152,3020.1,3019.6,2.31425849]
[1767334962877,5.646557,3020.1,3019.6,2.31425849]
[1767334963985,3.31116548,3020.1,3019.6,2.31425849]
[1767334964156,2.33539152,3020.0,3019.6,2.31425849]
[1767334964785,2.33539152,3020.0,3019.6,0.001]
[1767334965282,2.33539152,3020.0,3019.6,2.31425849]
[1767334966475,2.33539152,3020.0,3019.6,0.001]
[1767334966683,2.33539152,3019.9,3019.5,0.001]
[1767334967963,2.33539152,3019.9,3019.5,2.31425849]
[1767334975595,2.33539152,3019.9,3019.4,2.36511464]
[1767334975800,2.27748446,3020.1,3019.4,2.3982338]
[1767334977703,2.27548446,3020.0,3019.4,2.3982338]
[1767334978063,2.27548446,3020.0,3019.6,2.36511464]
[1767334979005,0.002,3020.4,3020.0,2.36411667]
[1767334979202,0.002,3020.5,3020.0,2.36511464]
[1767334979381,2.27748446,3020.5,3020.0,2.36511464]
[1767334979704,2.27748446,3020.5,3020.0,2.38542885]
[1767334984783,0.002,3020.5,3020.1,2.36511464]
[1767334988514,0.002,3020.5,3020.1,2.39822612]
[1767334989108,2.27548446,3020.4,3020.0,2.38542885]
[1767334989717,2.27382906,3020.4,3020.1,2.39822612]
[1767334990516,0.002,3020.5,3020.1,2.39822612]
[1767334990887,0.002,3020.5,3020.1,2.36511464]
[1767334991093,2.27748446,3020.5,3020.1,2.36511464]
[1767334992320,0.002,3020.4,3020.1,2.36511464]
[1767334992490,2.27748446,3020.4,3020.1,2.36511464]
[1767334993224,2.27748446,3020.4,3020.0,0.02031421]
[1767334993920,2.27748446,3020.4,3019.7,2.36511464]
[1767334995233,2.27548446,3020.3,3019.7,2.36511464]
[1767334996529,0.002,3020.4,3019.8,2.39822941]
[1767334997130,0.002,3020.4,3019.9,2.36511464]
[1767334997426,0.002,3020.4,3020.1,2.36511464]
[1767334997626,2.27748446,3020.4,3020.1,2.36511464]
[1767334998031,2.27748446,3020.4,3019.8,2.36511464]
[1767335000139,2.27748446,3020.4,3020.0,0.001]
[1767335000815,2.27748446,3020.4,3020.0,2.36611464]
[1767335004210,0.002,3020.4,3020.0,2.36611464]
[1767335007755,0.002,3020.4,3020.1,0.03311148]
[1767335008042,0.002,3020.4,3020.2,2.29738478]
[1767335008208,2.26302731,3020.5,3020.2,2.29738478]
[1767335008408,2.26102731,3020.7,3020.0,0.03411258]
[1767335008609,4.30429828,3021.3,3020.3,2.29738478]
[1767335008838,2.26302731,3021.2,3020.3,2.29738478]
[1767335009041,2.26302731,3021.2,3020.3,3.31085146]
[1767335009220,2.26302731,3021.2,3020.4,2.29738478]
[1767335010038,2.26102731,3021.1,3020.4,2.29738478]
[1767335011643,2.26102731,3021.1,3020.5,2.29738478]
[1767335012536,0.002,3021.2,3020.6,2.29738478]
[1767335013127,0.48808497,3021.6,3020.9,2.29738478]
[1767335014218,0.48608497,3021.5,3020.9,2.29738478]
[1767335015547,0.002,3021.6,3020.9,2.29738478]
[1767335015715,0.002,3021.6,3021.1,2.29738478]
[1767335016144,0.49008497,3021.6,3021.1,2.29738478]
[1767335019648,0.002,3021.6,3021.1,2.29738478]
[1767335021224,0.0006554,3021.6,3021.1,2.29738478]
[1767335023964,0.002,3021.8,3021.1,2.29738478]
[1767335024126,0.002,3022.2,3021.8,2.29738478]
[1767335024553,0.49208497,3022.2,3021.8,2.29738478]
[1767335024779,0.49208497,3022.2,3021.4,2.29738478]
[1767335024780,3.31085152,3022.2,3021.4,2.29738478]
[1767335024948,0.49008497,3022.1,3021.4,2.29738478]
[1767335025255,0.49008497,3021.9,3021.4,2.29738478]
[1767335025462,0.49008497,3021.9,3021.2,2.29738478]
[1767335027855,0.49008497,3021.7,3021.2,2.29738478]
[1767335028636,0.49008497,3021.7,3021.2,6.12567289]
[1767335028862,0.49008497,3021.9,3021.4,2.29738478]
[1767335029357,0.49208497,3021.9,3021.4,2.29738478]
[1767335029744,0.49208497,3021.9,3021.5,2.29738478]
[1767335030138,0.002,3022.2,3021.7,2.29738478]
[1767335030537,3.80094009,3022.2,3021.7,2.29738478]
[1767335031143,0.49008497,3022.1,3021.7,2.29738478]
[1767335032865,3.79905727,3022.1,3021.7,2.29738478]
[1767335033860,0.49008497,3022.1,3021.7,2.29738478]
[1767335034555,3.79904483,3022.1,3021.7,2.29738478]
[1767335034758,0.49008497,3022.0,3021.0,9.00188463]
[1767335034970,0.49008497,3022.0,3021.2,2.295508]
[1767335037779,0.49008497,3022.0,3021.3,2.295508]
[1767335040164,0.49008497,3022.0,3021.3,2.29395002]
[1767335043485,0.49008497,3022.0,3021.3,3.16295002]
[1767335044083,0.49008497,3022.0,3021.4,2.295508]
[1767335045690,0.49164295,3021.9,3021.4,2.295508]
[1767335046287,0.002,3022.1,3021.4,2.295508]
[1767335046679,0.49364295,3022.1,3021.4,2.295508]
[1767335048186,3.80262817,3022.1,3021.4,2.295508]
[1767335048386,0.49364295,3022.1,3021.4,2.295508]
[1767335048684,0.49364295,3022.1,3021.4,2.6120588]
[1767335049358,3.8026224,3022.1,3021.4,2.6120588]
[1767335049558,0.49164295,3022.0,3021.4,2.6120588]
[1767335051358,0.49164295,3022.0,3021.4,2.295508]
[1767335051359,0.49164295,3021.9,3021.4,2.295508]
[1767335058697,0.49164295,3021.8,3021.4,2.295508]
[1767335071782,3.80265149,3022.1,3021.4,2.295508]
[1767335072204,0.49164295,3022.0,3021.4,2.295508]
[1767335073007,0.002,3021.8,3021.4,2.295508]
[1767335074205,0.002,3021.8,3021.6,2.45354879]
[1767335078416,0.002,3022.1,3021.7,2.45354879]
[1767335078599,0.49408497,3022.1,3021.7,2.45354879]
[1767335080817,0.002,3021.8,3021.7,2.45354879]
[1767335085819,0.002,3021.8,3021.6,0.24535488]
[1767335085991,0.002,3021.8,3021.5,2.45354879]
[1767335090924,0.49408497,3021.8,3021.5,2.45354879]
[1767335091416,0.49408497,3021.8,3021.3,3.32354879]
[1767335091726,0.49408497,3021.8,3021.3,2.45454879]
[1767335094828,0.49408497,3021.8,3021.3,0.001]
[1767335096527,0.49408497,3021.8,3021.3,2.25467641]
[1767335099840,0.49408497,3021.8,3021.3,2.25311843]
[1767335100443,0.49408497,3021.8,3021.3,2.25411843]
[1767335100806,0.002,3021.8,3021.5,2.25367641]
[1767335101005,0.49464295,3022.1,3021.7,2.25367641]
[1767335101006,0.49308498,3022.1,3021.7,2.25367641]
[1767335103730,0.00044203,3022.1,3021.7,2.25367641]
[1767335104736,0.49508498,3022.1,3021.7,2.25367641]
[1767335129848,0.49508498,3022.1,3021.7,2.25211844]
[1767335136951,0.49508498,3022.1,3021.6,0.001]
[1767335137155,0.49620092,3021.9,3021.6,0.001]
[1767335137351,0.38059991,3022.0,3021.6,2.26137117]
[1767335137553,0.49664295,3022.1,3021.6,2.26137117]
[1767335148264,0.49520092,3021.9,3021.5,0.001]
[1767335148447,0.49520092,3021.9,3021.5,2.29446731]
[1767335149162,0.49564295,3022.1,3021.5,2.26137117]
[1767335164066,0.49520092,3022.0,3021.5,2.26137117]
[1767335168174,0.49520092,3021.9,3021.3,3.19416998]
[1767335168590,0.49520092,3021.9,3021.3,2.32516998]
[1767335169987,0.49320092,3021.6,3021.1,2.32516998]
[1767335170160,0.49220092,3021.4,3021.1,2.32516998]
[1767335170963,0.49220092,3021.4,3021.0,0.87]
[1767335171193,0.49220092,3021.4,3021.0,3.19416998]
[1767335173988,0.49220092,3021.4,3021.0,0.87]
[1767335174290,0.49220092,3021.4,3021.1,2.32416998]
[1767335180295,0.49220092,3021.4,3021.0,0.001]
[1767335180494,0.87237734,3021.4,3021.0,0.001]
[1767335180796,0.49120092,3021.3,3021.0,0.001]
[1767335181888,0.49120092,3021.3,3020.9,2.32416998]
[1767335182073,0.49120092,3021.3,3020.6,3.19316998]
[1767335182398,0.49120092,3021.3,3020.7,2.32416998]
[1767335183098,0.49020092,3021.2,3020.7,2.32416998]
[1767335183896,3.69177517,3022.0,3021.1,2.32775897]
[1767335184074,0.49020092,3021.9,3021.3,2.32775897]
[1767335190216,0.00086138,3022.5,3022.1,2.33282036]
[1767335190410,0.36017061,3022.7,3022.4,2.33282036]
[1767335190715,0.49620092,3022.9,3022.4,2.33282036]
[1767335192275,0.002,3023.3,3022.8,2.33282036]
[1767335192499,3.32457199,3023.6,3022.7,2.33282036]
[1767335192698,3.30743248,3023.5,3022.7,2.33282036]
[1767335192889,7.15353028,3023.6,3022.7,2.33282036]
[1767335193182,4.1726706,3023.5,3022.7,2.33282036]
[1767335193479,0.86723291,3023.4,3022.7,2.33282036]
[1767335193879,0.86523291,3023.3,3022.7,3.20182036]
[1767335194082,0.86523291,3023.2,3022.7,2.33282036]
[1767335196809,0.86723291,3023.4,3022.7,2.33282036]
[1767335197177,0.86523291,3023.3,3022.7,2.33282036]
[1767335202625,4.17288034,3023.3,3022.7,2.33282036]
[1767335203222,4.17488034,3023.3,3022.7,2.33282036]
[1767335203424,4.17488034,3023.3,3022.7,2.6530024]
[1767335204427,0.002,3023.4,3023.0,2.33282036]
[1767335204792,0.86723291,3023.4,3023.0,2.33282036]
[1767335213545,0.86723291,3023.4,3022.8,2.44182344]
[1767335218848,0.86723291,3023.4,3023.0,2.44182344]
[1767335219143,0.002,3023.4,3023.0,2.44182344]
[1767335219719,0.0172125,3023.6,3023.0,0.24418234]
[1767335219922,0.88602606,3023.6,3023.1,2.44024279]
[1767335221445,0.00041934,3023.7,3023.1,0.869]
[1767335221644,0.00041934,3023.8,3023.3,2.44182344]
[1767335227257,0.8884454,3023.8,3023.3,2.44182344]
[1767335227462,0.8884454,3023.8,3023.5,2.44182344]
[1767335229730,0.00041934,3023.8,3023.5,2.44182344]
[1767335231060,0.00041934,3023.8,3023.7,2.44182344]
[1767335231262,0.00041934,3023.8,3023.7,2.44056364]
[1767335231628,0.00041934,3023.8,3023.6,0.869]
[1767335232765,0.00041934,3023.8,3023.4,0.869]
[1767335233253,0.00041934,3023.8,3023.4,3.31082344]
[1767335233860,0.00041934,3023.8,3023.4,2.44182344]
[1767335236372,0.00041934,3023.8,3023.4,2.68600578]
[1767335240147,0.00041934,3023.8,3023.4,2.44182344]
[1767335241074,0.00041934,3023.8,3023.3,0.001]
[1767335241555,0.00041934,3023.8,3023.3,2.44282344]
[1767335243860,0.0207052,3023.8,3023.3,2.44282344]
[1767335246859,0.02028586,3023.7,3023.3,2.44282344]
[1767335247079,0.02028586,3023.7,3023.3,0.001]
[1767335247295,0.02028586,3023.6,3023.0,0.001]
[1767335247461,0.02028586,3023.6,3022.9,2.45894517]
[1767335247656,0.02028586,3023.6,3022.6,0.001]
[1767335247854,0.02028586,3023.6,3022.7,2.45894517]
[1767335248055,2.47723103,3023.3,3022.7,2.45894517]
[1767335249463,3.30753456,3023.4,3022.7,2.49202817]
[1767335250257,5.78634625,3023.4,3022.7,2.45736451]
[1767335251067,3.30753456,3023.4,3022.7,2.45736451]
[1767335251268,2.47881169,3023.3,3022.7,2.45736451]
[1767335252479,2.47881169,3023.1,3022.7,2.45736451]
[1767335256690,5.78674057,3023.1,3022.7,2.45736451]
[1767335256991,2.47881169,3023.0,3022.7,2.45736451]
[1767335257890,3.30792888,3023.1,3022.7,2.45736451]
[1767335258596,5.78661603,3023.2,3022.7,2.45736451]
[1767335259296,2.47881169,3023.2,3022.7,2.45736451]
[1767335259492,2.47923103,3023.8,3022.9,2.45894517]
[1767335259695,2.47881169,3023.6,3022.9,2.45894517]
[1767335260591,3.30742516,3023.5,3022.9,2.45894517]
[1767335260763,2.47881169,3023.4,3022.9,2.45894517]
[1767335261695,2.47723104,3023.4,3022.7,2.45894517]
[1767335261894,2.47723104,3023.4,3022.9,2.45894517]
[1767335263494,5.78481138,3023.4,3022.9,2.45894517]
[1767335263798,2.47923104,3023.3,3022.7,2.45894517]
[1767335264898,3.30775017,3023.3,3022.7,2.45894517]
[1767335265098,2.47923104,3023.2,3022.7,2.45894517]
[1767335267196,5.78705332,3023.2,3022.6,0.001]
[1767335267400,2.47923104,3023.1,3022.6,0.001]
[1767335267602,2.47923104,3023.0,3022.6,0.001]
[1767335268402,2.47923104,3023.0,3022.6,2.45994517]
[1767335269301,2.47923104,3023.0,3022.6,0.001]
[1767335269476,2.47923104,3023.0,3022.6,2.45994517]
[1767335270305,2.47823104,3022.9,3022.2,2.45894517]
[1767335270479,2.47823104,3022.9,3022.4,2.45894517]
[1767335270683,2.47823104,3022.9,3022.6,2.45894517]
[1767335271202,2.47823104,3022.9,3022.1,0.03308957]
[1767335271203,2.47823104,3022.9,3022.2,2.45894517]
[1767335271502,2.47823104,3022.9,3022.4,2.45894517]
[1767335271503,2.47823104,3022.8,3022.4,2.45894517]
[1767335272404,2.47823104,3022.8,3022.2,2.45894517]
[1767335275809,2.47823104,3022.8,3022.3,0.03308738]
[1767335276007,2.47823104,3022.8,3022.4,2.34702546]
[1767335276311,2.48023104,3022.8,3022.4,2.34802546]
[1767335276509,2.29121326,3022.7,3022.4,0.03408628]
[1767335276692,6.11711797,3022.7,3022.2,2.31393918]
[1767335276892,2.29121326,3022.7,3022.2,2.31393918]
[1767335277203,0.002,3022.8,3022.2,2.31393918]
[1767335277380,0.002,3022.8,3022.4,2.31393918]
[1767335277580,0.002,3022.8,3022.5,2.34702437]
[1767335277803,2.29321326,3022.8,3022.5,2.34702437]
[1767335279209,0.002,3022.8,3022.5,2.34702437]
[1767335279407,2.29121326,3023.0,3022.5,0.03308519]
[1767335279584,2.29121326,3023.0,3022.6,2.31393918]
[1767335279783,2.29121326,3023.0,3022.6,2.31235853]
[1767335280102,5.59920908,3023.0,3022.6,2.31235853]
[1767335281496,4.17691081,3023.1,3022.6,2.31235853]
[1767335281695,3.30967824,3023.3,3022.0,0.001]
[1767335281696,0.002,3023.3,3022.8,2.31393918]
[1767335281881,3.30971584,3023.3,3022.8,2.31393918]
[1767335282285,0.002,3023.3,3022.8,2.31393918]
[1767335282488,3.30756594,3023.8,3022.9,2.31393918]
[1767335282687,3.16021326,3023.7,3022.9,2.31393918]
[1767335283215,2.29121326,3023.6,3022.9,2.31393918]
[1767335283912,5.59856052,3023.6,3022.9,2.31393918]
[1767335284598,2.29121326,3023.6,3022.9,2.31393918]
[1767335284799,2.32429969,3023.6,3023.1,2.31393918]
[1767335288318,5.6316517,3023.6,3023.1,2.31393918]
[1767335289020,2.32429969,3023.6,3023.1,2.31393918]
[1767335289410,5.63162762,3023.6,3023.1,2.31393918]
[1767335292526,2.29121326,3023.5,3023.1,2.31393918]
[1767335293324,2.29121326,3023.5,3023.1,2.3126921]
[1767335293907,2.29121326,3023.5,3023.1,2.31141219]
[1767335296344,2.29121326,3023.5,3023.1,2.31012204]
[1767335301431,0.00041934,3023.8,3023.5,2.31393918]
[1767335304414,0.002,3024.1,3023.7,2.29859495]
[1767335305336,2.43806166,3024.4,3023.6,2.29132245]
[1767335306735,2.43606166,3024.3,3023.6,2.29132245]
[1767335308636,2.43606166,3024.3,3023.7,2.29132245]
[1767335308829,2.43606166,3024.3,3023.9,2.29132245]
[1767335310644,2.43806166,3024.3,3023.9,2.29132245]
[1767335312952,0.002,3024.3,3023.9,3.30698016]
[1767335313127,0.87,3024.6,3024.1,2.29132245]
[1767335313128,0.002,3024.6,3024.1,2.29132245]
[1767335313323,0.002,3024.6,3024.3,2.29132245]
[1767335313954,2.43806166,3024.6,3024.2,0.22913225]
[1767335314158,2.43806166,3024.6,3024.0,2.29132245]
[1767335314644,2.43806166,3024.6,3023.8,6.21009685]
[1767335314956,2.43806166,3024.6,3023.9,2.91233214]
[1767335315152,2.43806166,3024.6,3023.9,6.21930551]
[1767335315528,2.43806166,3024.6,3023.9,2.91233214]
[1767335315729,2.43806166,3024.6,3023.9,6.21930353]
[1767335315934,2.43806166,3024.6,3024.0,2.29132245]
[1767335316252,0.002,3024.6,3024.1,2.29132245]
[1767335316453,2.43806166,3024.6,3023.9,3.92798108]
[1767335316660,2.43806166,3024.6,3023.9,6.21930353]
[1767335316823,3.82790471,3024.6,3023.9,2.91233214]
[1767335317024,2.43606166,3024.5,3023.9,2.29132245]
[1767335317258,2.43606166,3024.5,3023.7,5.59849696]
[1767335317554,2.43606166,3024.5,3023.5,3.30739323]
[1767335317555,2.43606166,3024.5,3023.9,2.29132245]
[1767335321264,3.82590471,3024.5,3023.9,2.29132245]
[1767335321563,2.43606166,3024.4,3023.9,2.29132245]
[1767335321929,2.43606166,3024.4,3023.7,5.59847874]
[1767335323355,2.43606166,3024.2,3023.7,2.29132245]
[1767335324945,2.43606166,3024.2,3023.5,2.3253967]
[1767335325144,2.43606166,3024.2,3023.5,2.29232245]
[1767335325347,2.43606166,3024.2,3023.5,5.59974364]
[1767335325542,2.43606166,3024.2,3023.5,2.29232245]
[1767335326258,2.43806166,3024.2,3023.5,2.29232245]
[1767335326931,2.43806166,3024.2,3023.5,5.59972921]
[1767335327132,2.43806166,3024.2,3023.5,2.29232245]
[1767335327965,2.43806166,3024.2,3023.6,2.29132245]
[1767335329361,3.45774304,3024.2,3023.6,2.29132245]
[1767335329556,2.43606166,3024.1,3023.6,2.29132245]
[1767335338669,0.002,3024.2,3023.7,2.40772644]
[1767335338866,0.002,3024.2,3023.9,2.40772644]
[1767335340367,3.35854634,3024.4,3023.7,2.40772644]
[1767335340541,3.35854634,3024.4,3023.8,2.40772644]
[1767335342662,3.35854634,3024.4,3024.0,2.40772644]
[1767335342972,0.868,3024.4,3024.0,2.40772644]
[1767335343976,0.868,3024.4,3024.0,2.40605644]
[1767335349558,2.49054634,3024.3,3023.6,2.40772644]
[1767335353276,2.49054634,3024.3,3023.6,2.97934135]
[1767335355481,2.49054634,3024.3,3023.7,2.40772644]
[1767335357476,0.868,3024.4,3023.7,2.40772644]
[1767335357680,0.002,3024.5,3023.8,2.44079741]
[1767335357978,0.002,3024.4,3023.8,2.44079741]
[1767335358180,0.002,3024.4,3023.9,2.40772644]
[1767335359774,2.49254634,3024.4,3023.9,2.40772644]
[1767335364483,2.49254634,3024.4,3023.7,2.31106225]
[1767335365784,2.49254634,3024.4,3023.9,0.001]
[1767335366156,2.47145257,3024.3,3023.9,0.001]
[1767335366780,2.47145257,3024.3,3023.8,2.33033333]
[1767335366781,3.04964443,3024.3,3023.8,2.33033333]
[1767335372388,2.47145257,3024.3,3023.8,2.33033333]
[1767335374292,2.47145257,3024.3,3023.8,2.33133333]
[1767335378796,0.002,3024.4,3023.8,2.33133333]
[1767335380911,2.47345257,3024.4,3023.8,2.33133333]
[1767335390506,3.82363688,3024.3,3023.8,2.33133333]
[1767335390710,2.28039365,3024.2,3023.8,2.33133333]
[1767335394913,2.28039365,3024.2,3023.8,0.001]
[1767335395121,0.61060305,3024.2,3023.6,2.3336198]
[1767335395415,2.48762519,3024.1,3023.6,2.3336198]
[1767335400815,0.002,3024.2,3023.6,2.3336198]
[1767335401288,2.48962519,3024.2,3023.6,2.3336198]
[1767335402131,0.002,3024.2,3023.6,2.3336198]
[1767335405518,2.48962519,3024.2,3023.6,2.3336198]
[1767335408431,2.48762519,3024.1,3023.6,2.3336198]
[1767335414423,2.48762519,3023.7,3022.6,0.001]
[1767335414632,2.48762519,3023.5,3023.0,2.3346198]
[1767335415002,2.48762519,3024.1,3023.1,2.3336198]
[1767335415237,2.48762519,3024.1,3023.2,2.36669733]
[1767335415421,2.48762519,3024.1,3023.6,2.3336198]
[1767335415738,0.002,3024.2,3023.6,2.3336198]
[1767335416228,0.002,3024.6,3024.0,2.3336198]
[1767335416406,2.48962519,3024.7,3024.2,2.3336198]
[1767335417228,3.82363688,3024.3,3023.8,0.868]
[1767335417429,6.31126207,3024.3,3023.9,2.3336198]
[1767335417637,2.48762519,3024.6,3023.9,2.3336198]
[1767335418405,2.48762519,3024.6,3024.0,2.3336198]
[1767335418619,2.48762519,3024.5,3024.0,2.3336198]
[1767335418905,4.54176309,3024.6,3023.9,2.3336198]
[1767335419207,3.30793775,3024.9,3023.8,3.34015298]
[1767335419424,4.69163688,3024.8,3023.9,0.58381151]
[1767335420434,0.002,3024.6,3023.9,0.58381151]
[1767335420607,0.002,3024.6,3024.0,0.58381151]
[1767335421023,4.69163688,3024.8,3023.9,0.38908935]
[1767335421230,4.69163688,3024.8,3024.0,0.58181151]
[1767335421405,0.28618849,3024.8,3024.0,0.58181151]
[1767335421732,0.28618849,3024.8,3024.0,3.30687768]
[1767335421733,2.48762519,3024.7,3024.0,3.30687768]
[1767335421906,2.48762519,3024.7,3024.0,3.67978148]
[1767335422108,2.48762519,3024.7,3024.0,0.3729038]
[1767335425835,2.36424538,3024.2,3023.6,2.35072198]
[1767335426050,2.36424538,3024.6,3023.7,2.35072198]
[1767335426245,2.36424538,3024.6,3023.9,2.35072198]
[1767335426416,2.39731635,3024.5,3023.9,2.35072198]
[1767335427115,2.36424538,3024.4,3023.7,2.35072198]
[1767335427316,2.36424538,3024.2,3023.7,2.6962114]
[1767335431942,2.36424538,3024.2,3023.6,4.17531117]
[1767335432142,2.36424538,3024.2,3023.6,4.17531155]
[1767335432353,2.36424538,3024.2,3023.6,6.52603353]
[1767335432730,2.36424538,3024.2,3023.8,2.35072198]
[1767335433231,2.36424538,3024.5,3023.8,2.35072198]
[1767335433544,2.36424538,3024.5,3024.0,2.35072198]
[1767335436358,0.03307097,3024.4,3024.0,2.35072198]
[1767335436530,2.39731635,3024.4,3024.0,2.35072198]
[1767335437945,2.36424538,3024.4,3024.0,2.35072198]
[1767335442724,2.36424538,3024.6,3024.2,2.35072198]
[1767335443961,0.002,3024.4,3024.2,2.35072198]
[1767335445261,0.002,3024.4,3023.9,3.30692931]
[1767335445262,2.36424538,3024.6,3024.0,2.35072198]
[1767335445450,0.002,3024.7,3024.1,2.35072198]
[1767335445628,2.36624538,3024.7,3024.1,2.35072198]
[1767335445830,0.03307097,3024.6,3024.1,2.35072198]
[1767335447168,2.39731635,3024.6,3024.1,2.35072198]
[1767335452262,2.39931635,3024.6,3024.1,2.35072198]
[1767335454367,2.34999876,3024.5,3024.1,2.35072198]
[1767335461472,0.002,3024.6,3024.1,2.35072198]
[1767335461766,0.002,3024.9,3024.2,2.3502902]
[1767335462142,2.35199876,3024.9,3024.4,2.31722361]
[1767335462350,0.002,3025.5,3024.8,2.31722361]